[Event "*** Titled Tuesday Blitz"]
[Site "Chess.com"]
[Date "2020.04.21"]
[Round "5"]
[White "colegiodemadrid"]
[Black "szefru"]
[Result "0-1"]
[WhiteElo "2297"]
[BlackElo "2138"]
[TimeControl "180+1"]
[EndTime "10:57:14 PDT"]
[Termination "szefru won on time"]

1. e4 {[%clk 0:03:00.9]} 1... Nf6 {[%clk 0:02:59.1]} 2. e5 {[%clk 0:02:59.9]}
2... Nd5 {[%clk 0:02:59.3]} 3. c4 {[%clk 0:03:00.4]} 3... Nb6 {[%clk 0:02:58.4]}
4. d4 {[%clk 0:03:01.3]} 4... d6 {[%clk 0:02:57.9]} 5. exd6 {[%clk 0:03:02.2]}
5... exd6 {[%clk 0:02:57.3]} 6. Nc3 {[%clk 0:03:01.3]} 6... Be7 {[%clk
0:02:56.9]} 7. Bd3 {[%clk 0:03:00.6]} 7... O-O {[%clk 0:02:56.3]} 8. Nge2 {[%clk
0:03:01]} 8... Bf6 {[%clk 0:02:55.3]} 9. O-O {[%clk 0:02:49]} 9... Nc6 {[%clk
0:02:55.4]} 10. c5 {[%clk 0:02:49.3]} 10... dxc5 {[%clk 0:02:46.8]} 11. dxc5
{[%clk 0:02:50.2]} 11... Nd7 {[%clk 0:02:46]} 12. Be3 {[%clk 0:02:44.5]} 12...
Nde5 {[%clk 0:02:44.3]} 13. Be4 {[%clk 0:02:42.4]} 13... Bg4 {[%clk 0:02:36.3]}
14. f3 {[%clk 0:02:31.4]} 14... Bh5 {[%clk 0:02:35.1]} 15. Qb3 {[%clk
0:02:23.8]} 15... Rb8 {[%clk 0:02:25]} 16. Rad1 {[%clk 0:02:22.9]} 16... Qe8
{[%clk 0:02:11.9]} 17. Nd5 {[%clk 0:02:16.6]} 17... Bd8 {[%clk 0:02:10.9]} 18.
Nef4 {[%clk 0:02:16.5]} 18... Bg6 {[%clk 0:02:07.7]} 19. Bxg6 {[%clk 0:02:06.4]}
19... Nxg6 {[%clk 0:02:02.9]} 20. Rfe1 {[%clk 0:02:02.1]} 20... Qe5 {[%clk
0:01:21.4]} 21. g4 {[%clk 0:00:54.4]} 21... Bf6 {[%clk 0:00:50.5]} 22. Bc1
{[%clk 0:00:29.4]} 22... Qg5 {[%clk 0:00:36.9]} 23. Ng2 {[%clk 0:00:16.5]} 23...
Nf4 {[%clk 0:00:27.1]} 24. Bxf4 {[%clk 0:00:15.3]} 24... Qg6 {[%clk 0:00:25.5]}
25. Re4 {[%clk 0:00:12.9]} 25... Rfe8 {[%clk 0:00:23.8]} 26. Nh4 {[%clk
0:00:12.3]} 26... Bxh4 {[%clk 0:00:22.2]} 27. Qe3 {[%clk 0:00:05]} 27... Rxe4
{[%clk 0:00:21.5]} 28. Qxe4 {[%clk 0:00:05.5]} 28... h6 {[%clk 0:00:20.1]} 29.
Qxg6 {[%clk 0:00:05.2]} 29... fxg6 {[%clk 0:00:21]} 30. Bxc7 {[%clk 0:00:05.2]}
30... Rf8 {[%clk 0:00:20.5]} 31. Kg2 {[%clk 0:00:05.2]} 31... Bg5 {[%clk
0:00:20.5]} 32. f4 {[%clk 0:00:05.2]} 32... Bf6 {[%clk 0:00:19.7]} 33. Bd6
{[%clk 0:00:04.3]} 33... Rf7 {[%clk 0:00:19.3]} 34. Re1 {[%clk 0:00:04.1]} 34...
Kh7 {[%clk 0:00:18.7]} 35. Re8 {[%clk 0:00:04.1]} 35... Bxb2 {[%clk 0:00:17.6]}
36. Nc7 {[%clk 0:00:04.1]} 36... g5 {[%clk 0:00:16.8]} 37. f5 {[%clk 0:00:04]}
37... g6 {[%clk 0:00:16.6]} 38. Ne6 {[%clk 0:00:02.9]} 38... gxf5 {[%clk
0:00:16.3]} 39. Nf8+ {[%clk 0:00:02.9]} 39... Kg7 {[%clk 0:00:15.8]} 40. Ne6+
{[%clk 0:00:02.6]} 40... Kf6 {[%clk 0:00:16.1]} 41. gxf5 {[%clk 0:00:03.1]}
41... Kxf5 {[%clk 0:00:16.1]} 42. Rg8 {[%clk 0:00:01.1]} 42... Kxe6 {[%clk
0:00:16]} 43. Rg7 {[%clk 0:00:01.7]} 43... Rxg7 {[%clk 0:00:15.9]} 0-1

[Event "*** Titled Tuesday Blitz"]
[Site "Chess.com"]
[Date "2020.04.21"]
[Round "5"]
[White "ElGasanov"]
[Black "Kouzari"]
[Result "1-0"]
[WhiteElo "2749"]
[BlackElo "2597"]
[TimeControl "180+1"]
[EndTime "10:57:15 PDT"]
[Termination "ElGasanov won by checkmate"]

1. d4 {[%clk 0:03:00.9]} 1... Nf6 {[%clk 0:02:55]} 2. Nf3 {[%clk 0:03:00.4]}
2... c5 {[%clk 0:02:50.6]} 3. d5 {[%clk 0:02:57.6]} 3... e6 {[%clk 0:02:50.7]}
4. c4 {[%clk 0:02:55.3]} 4... exd5 {[%clk 0:02:49.3]} 5. cxd5 {[%clk 0:02:55.1]}
5... d6 {[%clk 0:02:50.2]} 6. e4 {[%clk 0:02:55.4]} 6... g6 {[%clk 0:02:50.4]}
7. Bd3 {[%clk 0:02:55.6]} 7... Bg7 {[%clk 0:02:49.7]} 8. O-O {[%clk 0:02:56.1]}
8... O-O {[%clk 0:02:49.8]} 9. h3 {[%clk 0:02:55.7]} 9... Re8 {[%clk 0:02:49.3]}
10. Re1 {[%clk 0:02:53.4]} 10... Nbd7 {[%clk 0:02:44.6]} 11. Nc3 {[%clk
0:02:52.3]} 11... a6 {[%clk 0:02:40.5]} 12. a4 {[%clk 0:02:52.2]} 12... Ne5
{[%clk 0:02:39.9]} 13. Nxe5 {[%clk 0:02:51]} 13... Rxe5 {[%clk 0:02:40.8]} 14.
Bc4 {[%clk 0:02:39.3]} 14... Re8 {[%clk 0:02:31.2]} 15. f4 {[%clk 0:02:25.7]}
15... Nh5 {[%clk 0:02:25.6]} 16. Qf3 {[%clk 0:02:25.3]} 16... f5 {[%clk
0:02:08]} 17. Bd2 {[%clk 0:02:16]} 17... Bd4+ {[%clk 0:02:03.4]} 18. Kh2 {[%clk
0:02:11.4]} 18... Nf6 {[%clk 0:01:39.5]} 19. exf5 {[%clk 0:01:54]} 19... Bxf5
{[%clk 0:01:27.9]} 20. Rxe8+ {[%clk 0:01:53.6]} 20... Qxe8 {[%clk 0:01:26.2]}
21. Re1 {[%clk 0:01:48.1]} 21... Qd7 {[%clk 0:01:07.4]} 22. g4 {[%clk
0:01:40.3]} 22... Bxg4 {[%clk 0:00:59]} 23. hxg4 {[%clk 0:01:39.7]} 23... Nxg4+
{[%clk 0:00:59.5]} 24. Kg2 {[%clk 0:01:37.3]} 24... Rf8 {[%clk 0:00:43.7]} 25.
Re6 {[%clk 0:01:28.2]} 25... Ne5 {[%clk 0:00:40.6]} 26. Qe2 {[%clk 0:01:08.9]}
26... Nxc4 {[%clk 0:00:26.5]} 27. Qxc4 {[%clk 0:01:09.3]} 27... Qd8 {[%clk
0:00:25.2]} 28. Qe2 {[%clk 0:00:57]} 28... Qh4 {[%clk 0:00:21.1]} 29. Ne4 {[%clk
0:00:47.2]} 29... Bxb2 {[%clk 0:00:07.2]} 30. Be1 {[%clk 0:00:27.1]} 30... Qxf4
{[%clk 0:00:05.3]} 31. Bg3 {[%clk 0:00:27.6]} 31... Qf5 {[%clk 0:00:04.5]} 32.
Rxd6 {[%clk 0:00:15.9]} 32... Bd4 {[%clk 0:00:04.5]} 33. a5 {[%clk 0:00:11.5]}
33... h5 {[%clk 0:00:03.3]} 34. Nf2 {[%clk 0:00:08.3]} 34... Kh7 {[%clk
0:00:02.9]} 35. Qe6 {[%clk 0:00:04.9]} 35... Qf3+ {[%clk 0:00:01.8]} 36. Kh2
{[%clk 0:00:05.4]} 36... Bxf2 {[%clk 0:00:02.2]} 37. Qxg6+ {[%clk 0:00:05.5]}
37... Kh8 {[%clk 0:00:02.9]} 38. Be5+ {[%clk 0:00:05.6]} 38... Rf6 {[%clk
0:00:01.8]} 39. Rd8# {[%clk 0:00:05.5]} 1-0

[Event "*** Titled Tuesday Blitz"]
[Site "Chess.com"]
[Date "2020.04.21"]
[Round "5"]
[White "FrogMist"]
[Black "ferdipy"]
[Result "0-1"]
[WhiteElo "2412"]
[BlackElo "2230"]
[TimeControl "180+1"]
[EndTime "10:57:16 PDT"]
[Termination "ferdipy won by resignation"]

1. d4 {[%clk 0:03:00.9]} 1... e5 {[%clk 0:02:58.7]} 2. dxe5 {[%clk 0:03:00.8]}
2... d6 {[%clk 0:02:58.2]} 3. Nf3 {[%clk 0:02:57.2]} 3... Nc6 {[%clk 0:02:57.2]}
4. exd6 {[%clk 0:02:53.3]} 4... Bxd6 {[%clk 0:02:56.5]} 5. e4 {[%clk 0:02:53]}
5... Qe7 {[%clk 0:02:49.2]} 6. Nc3 {[%clk 0:02:52.2]} 6... Bg4 {[%clk
0:02:45.9]} 7. Be2 {[%clk 0:02:49.8]} 7... O-O-O {[%clk 0:02:45.5]} 8. Be3
{[%clk 0:02:43.7]} 8... Nf6 {[%clk 0:02:30.6]} 9. Nd2 {[%clk 0:02:41.6]} 9...
Bxe2 {[%clk 0:02:25]} 10. Qxe2 {[%clk 0:02:42.5]} 10... Be5 {[%clk 0:02:20]} 11.
Qc4 {[%clk 0:02:05.9]} 11... Bxc3 {[%clk 0:02:16]} 12. Qxc3 {[%clk 0:02:06.8]}
12... Nxe4 {[%clk 0:02:14]} 13. Nxe4 {[%clk 0:02:07.7]} 13... Qxe4 {[%clk
0:02:14.2]} 14. O-O {[%clk 0:02:08.1]} 14... f6 {[%clk 0:02:09.5]} 15. Rfe1
{[%clk 0:02:03]} 15... Qh4 {[%clk 0:01:49.7]} 16. Qc5 {[%clk 0:01:54.1]} 16...
Qb4 {[%clk 0:01:38.5]} 17. Qf5+ {[%clk 0:01:46.7]} 17... Kb8 {[%clk 0:01:37.1]}
18. c3 {[%clk 0:01:41.3]} 18... Qd6 {[%clk 0:01:10.9]} 19. a4 {[%clk 0:01:31.4]}
19... a5 {[%clk 0:01:07.3]} 20. Qb5 {[%clk 0:01:24.6]} 20... Rhe8 {[%clk
0:01:02.6]} 21. h3 {[%clk 0:01:20.2]} 21... Qd5 {[%clk 0:01:00.4]} 22. c4 {[%clk
0:01:16.3]} 22... Qd7 {[%clk 0:00:57]} 23. b4 {[%clk 0:01:09.9]} 23... Re5
{[%clk 0:00:53.3]} 24. Bc5 {[%clk 0:01:03.2]} 24... axb4 {[%clk 0:00:46.2]} 25.
a5 {[%clk 0:00:49.3]} 25... Rde8 {[%clk 0:00:34.3]} 26. Red1 {[%clk 0:00:43.9]}
26... Qe6 {[%clk 0:00:30.2]} 27. a6 {[%clk 0:00:28]} 27... b6 {[%clk 0:00:27.9]}
28. Rd6 {[%clk 0:00:22.8]} 28... Re1+ {[%clk 0:00:24]} 29. Rxe1 {[%clk 0:00:22]}
29... Qxe1+ {[%clk 0:00:24.9]} 30. Kh2 {[%clk 0:00:22.3]} 30... Qe5+ {[%clk
0:00:25.1]} 31. g3 {[%clk 0:00:22.4]} 31... Qxc5 {[%clk 0:00:23.2]} 32. Qxc5
{[%clk 0:00:10.5]} 32... bxc5 {[%clk 0:00:23]} 33. Rxc6 {[%clk 0:00:11.2]} 33...
Re5 {[%clk 0:00:20.3]} 34. f4 {[%clk 0:00:08.1]} 34... Re2+ {[%clk 0:00:16.5]}
35. Kg1 {[%clk 0:00:08.3]} 35... b3 {[%clk 0:00:12.5]} 36. Rxc5 {[%clk
0:00:08.7]} 36... b2 {[%clk 0:00:13.1]} 37. Rb5+ {[%clk 0:00:09.2]} 37... Ka7
{[%clk 0:00:13.5]} 38. Kf1 {[%clk 0:00:07.6]} 38... Rc2 {[%clk 0:00:13.8]} 39.
Rb3 {[%clk 0:00:05.4]} 39... Rc1+ {[%clk 0:00:14.1]} 40. Ke2 {[%clk 0:00:04.3]}
40... b1=Q {[%clk 0:00:15]} 41. Rxb1 {[%clk 0:00:04.8]} 41... Rxb1 {[%clk
0:00:15.5]} 42. Kf3 {[%clk 0:00:05.7]} 42... Kxa6 {[%clk 0:00:15.8]} 43. Ke4
{[%clk 0:00:06.6]} 43... Rb3 {[%clk 0:00:15.5]} 44. Kd5 {[%clk 0:00:05.7]} 44...
Kb7 {[%clk 0:00:14.5]} 45. g4 {[%clk 0:00:05.3]} 45... Rxh3 {[%clk 0:00:14.7]}
0-1

[Event "*** Titled Tuesday Blitz"]
[Site "Chess.com"]
[Date "2020.04.21"]
[Round "5"]
[White "yavrukurt40"]
[Black "Yurovskykh_Oleksandr"]
[Result "1-0"]
[WhiteElo "2789"]
[BlackElo "2619"]
[TimeControl "180+1"]
[EndTime "10:57:17 PDT"]
[Termination "yavrukurt40 won by resignation"]

1. e4 {[%clk 0:03:00.9]} 1... d5 {[%clk 0:02:57.7]} 2. exd5 {[%clk 0:03:00.6]}
2... Qxd5 {[%clk 0:02:58.6]} 3. Nc3 {[%clk 0:03:00.8]} 3... Qd8 {[%clk
0:02:58.6]} 4. Nf3 {[%clk 0:03:01.1]} 4... Bg4 {[%clk 0:02:58]} 5. d4 {[%clk
0:03:00]} 5... e6 {[%clk 0:02:58.2]} 6. Be2 {[%clk 0:02:59.2]} 6... Nf6 {[%clk
0:02:55.6]} 7. O-O {[%clk 0:02:57.5]} 7... c6 {[%clk 0:02:55.4]} 8. Ne5 {[%clk
0:02:56.4]} 8... Bxe2 {[%clk 0:02:55.1]} 9. Nxe2 {[%clk 0:02:57.3]} 9... Nbd7
{[%clk 0:02:55.2]} 10. f4 {[%clk 0:02:56.7]} 10... Be7 {[%clk 0:02:41.6]} 11. c3
{[%clk 0:02:52.4]} 11... O-O {[%clk 0:02:40.8]} 12. Ng3 {[%clk 0:02:52.7]} 12...
c5 {[%clk 0:02:40.6]} 13. f5 {[%clk 0:02:37.8]} 13... Nxe5 {[%clk 0:02:23.1]}
14. dxe5 {[%clk 0:02:38.7]} 14... Qxd1 {[%clk 0:02:23.1]} 15. Rxd1 {[%clk
0:02:39.6]} 15... Nd5 {[%clk 0:02:23.1]} 16. c4 {[%clk 0:02:33.6]} 16... Nb6
{[%clk 0:02:21.3]} 17. b3 {[%clk 0:02:33.8]} 17... Bh4 {[%clk 0:02:20.6]} 18.
fxe6 {[%clk 0:02:31.1]} 18... fxe6 {[%clk 0:02:08.1]} 19. Ne4 {[%clk 0:02:31.3]}
19... Be7 {[%clk 0:02:07]} 20. Be3 {[%clk 0:02:30.9]} 20... Rac8 {[%clk
0:02:04.1]} 21. a4 {[%clk 0:02:25.9]} 21... Rfd8 {[%clk 0:01:58.9]} 22. Rxd8+
{[%clk 0:02:16.3]} 22... Rxd8 {[%clk 0:01:59.8]} 23. Bxc5 {[%clk 0:02:08]} 23...
Nc8 {[%clk 0:01:54.6]} 24. a5 {[%clk 0:01:56.2]} 24... Rd3 {[%clk 0:01:31.5]}
25. Bxe7 {[%clk 0:01:53]} 25... Nxe7 {[%clk 0:01:32.4]} 26. Nc5 {[%clk
0:01:52.7]} 26... Re3 {[%clk 0:01:31.6]} 27. b4 {[%clk 0:01:35.3]} 27... b6
{[%clk 0:01:17.9]} 28. axb6 {[%clk 0:01:34.2]} 28... axb6 {[%clk 0:01:18.8]} 29.
Nd7 {[%clk 0:01:14]} 29... Nc6 {[%clk 0:01:14.6]} 30. b5 {[%clk 0:01:14.3]}
30... Nxe5 {[%clk 0:01:14.6]} 31. Nxb6 {[%clk 0:01:14.8]} 31... Rc3 {[%clk
0:01:09.8]} 32. Re1 {[%clk 0:00:42.7]} 32... Nxc4 {[%clk 0:01:06.7]} 33. Nxc4
{[%clk 0:00:43.6]} 33... Rxc4 {[%clk 0:01:07.6]} 34. Rxe6 {[%clk 0:00:44.5]}
34... Rb4 {[%clk 0:01:06.8]} 35. b6 {[%clk 0:00:44.8]} 35... Rb2 {[%clk
0:01:07.3]} 36. h4 {[%clk 0:00:37.2]} 36... h5 {[%clk 0:01:05.7]} 37. Kh2 {[%clk
0:00:36]} 37... Rb3 {[%clk 0:01:02.6]} 38. Kg1 {[%clk 0:00:31.7]} 38... Rb2
{[%clk 0:01:02.2]} 39. Kf1 {[%clk 0:00:31.9]} 39... Kh7 {[%clk 0:00:20.3]} 40.
g3 {[%clk 0:00:29.3]} 40... Kg8 {[%clk 0:00:18.4]} 41. Rc6 {[%clk 0:00:27.4]}
41... Kh7 {[%clk 0:00:18.1]} 42. Ke1 {[%clk 0:00:26.9]} 42... Kg8 {[%clk
0:00:16.3]} 43. Kd1 {[%clk 0:00:23.6]} 43... Kh7 {[%clk 0:00:16.6]} 44. Kc1
{[%clk 0:00:23.5]} 44... Rb3 {[%clk 0:00:16.8]} 45. Kc2 {[%clk 0:00:22.8]} 45...
Rxg3 {[%clk 0:00:16.7]} 46. b7 {[%clk 0:00:22.6]} 46... Rg2+ {[%clk 0:00:09.3]}
47. Kb1 {[%clk 0:00:22.5]} 47... Rg1+ {[%clk 0:00:09.3]} 48. Rc1 {[%clk
0:00:22.8]} 1-0

[Event "*** Titled Tuesday Blitz"]
[Site "Chess.com"]
[Date "2020.04.21"]
[Round "5"]
[White "MusicCityMaster"]
[Black "CalinGheorghiu"]
[Result "0-1"]
[WhiteElo "2293"]
[BlackElo "2473"]
[TimeControl "180+1"]
[EndTime "10:57:17 PDT"]
[Termination "CalinGheorghiu won on time"]

1. d4 {[%clk 0:02:56.9]} 1... Nf6 {[%clk 0:02:59.6]} 2. c4 {[%clk 0:02:56.2]}
2... e6 {[%clk 0:02:59.1]} 3. g3 {[%clk 0:02:52.9]} 3... c5 {[%clk 0:02:57.3]}
4. d5 {[%clk 0:02:51.7]} 4... exd5 {[%clk 0:02:57.2]} 5. cxd5 {[%clk 0:02:51.7]}
5... d6 {[%clk 0:02:57.6]} 6. Bg2 {[%clk 0:02:51.5]} 6... g6 {[%clk 0:02:57.9]}
7. Nc3 {[%clk 0:02:51.5]} 7... Bg7 {[%clk 0:02:58.2]} 8. Nf3 {[%clk 0:02:51.4]}
8... O-O {[%clk 0:02:58.7]} 9. O-O {[%clk 0:02:50.6]} 9... Re8 {[%clk
0:02:59.2]} 10. Nd2 {[%clk 0:02:47.9]} 10... b6 {[%clk 0:02:58.9]} 11. a4 {[%clk
0:02:46.7]} 11... Ba6 {[%clk 0:02:50.1]} 12. Re1 {[%clk 0:02:45.3]} 12... Nbd7
{[%clk 0:02:46.8]} 13. Qc2 {[%clk 0:02:34.2]} 13... Ne5 {[%clk 0:02:36.1]} 14.
h3 {[%clk 0:02:30.1]} 14... Nd3 {[%clk 0:02:34.4]} 15. Rf1 {[%clk 0:02:15.2]}
15... Nxc1 {[%clk 0:02:31.2]} 16. Raxc1 {[%clk 0:02:15.1]} 16... Bxe2 {[%clk
0:02:30.9]} 17. Nxe2 {[%clk 0:02:12.4]} 17... Rxe2 {[%clk 0:02:30.2]} 18. Bf3
{[%clk 0:02:09.5]} 18... Re8 {[%clk 0:02:23.9]} 19. Nc4 {[%clk 0:02:09.3]} 19...
Qc7 {[%clk 0:02:19.5]} 20. Rfe1 {[%clk 0:02:05.1]} 20... Nd7 {[%clk 0:02:17.7]}
21. Kg2 {[%clk 0:02:03.4]} 21... Ne5 {[%clk 0:02:16.6]} 22. Nxe5 {[%clk
0:02:02.1]} 22... Rxe5 {[%clk 0:02:14.1]} 23. Rxe5 {[%clk 0:02:01]} 23... Bxe5
{[%clk 0:02:15]} 24. b3 {[%clk 0:02:00.8]} 24... a6 {[%clk 0:02:12.3]} 25. h4
{[%clk 0:01:57.8]} 25... h5 {[%clk 0:02:06.6]} 26. Qd3 {[%clk 0:01:41.1]} 26...
Qb7 {[%clk 0:01:54]} 27. g4 {[%clk 0:01:32.6]} 27... hxg4 {[%clk 0:01:37.8]} 28.
Bxg4 {[%clk 0:01:27.7]} 28... Qe7 {[%clk 0:01:38.2]} 29. Rh1 {[%clk 0:01:24.7]}
29... Kg7 {[%clk 0:01:35.7]} 30. h5 {[%clk 0:01:21.7]} 30... Rh8 {[%clk
0:01:36]} 31. hxg6 {[%clk 0:01:17.9]} 31... Rxh1 {[%clk 0:01:34.4]} 32. Kxh1
{[%clk 0:01:18.1]} 32... fxg6 {[%clk 0:01:31.4]} 33. Be6 {[%clk 0:01:12.8]}
33... Qf6 {[%clk 0:01:09.8]} 34. Kg2 {[%clk 0:01:09.3]} 34... Qf4 {[%clk
0:01:07.6]} 35. Qxa6 {[%clk 0:01:03.6]} 35... Qe4+ {[%clk 0:00:53.4]} 36. Kf1
{[%clk 0:00:53.8]} 36... Qb1+ {[%clk 0:00:52.7]} 37. Kg2 {[%clk 0:00:53.6]}
37... Qxb3 {[%clk 0:00:51.3]} 38. Qb7+ {[%clk 0:00:53.6]} 38... Kh6 {[%clk
0:00:50.9]} 39. a5 {[%clk 0:00:49.7]} 39... c4 {[%clk 0:00:47.3]} 40. a6 {[%clk
0:00:47.8]} 40... c3 {[%clk 0:00:44.9]} 41. a7 {[%clk 0:00:47.7]} 41... c2
{[%clk 0:00:44.4]} 42. a8=Q {[%clk 0:00:47.2]} 42... c1=Q {[%clk 0:00:44.4]} 43.
Qf8+ {[%clk 0:00:47]} 43... Kg5 {[%clk 0:00:36.9]} 44. Qbe7+ {[%clk 0:00:46.3]}
44... Kh5 {[%clk 0:00:32.8]} 45. Qh7+ {[%clk 0:00:33.6]} 45... Kg5 {[%clk
0:00:31.9]} 46. Qf5+ {[%clk 0:00:16.2]} 46... gxf5 {[%clk 0:00:25.5]} 47. Qxf5+
{[%clk 0:00:16.1]} 47... Kh6 {[%clk 0:00:22.5]} 48. Qf8+ {[%clk 0:00:13.9]}
48... Bg7 {[%clk 0:00:20.9]} 0-1

[Event "*** Titled Tuesday Blitz"]
[Site "Chess.com"]
[Date "2020.04.21"]
[Round "5"]
[White "AleksanderHnydiuk"]
[Black "Rainmond"]
[Result "0-1"]
[WhiteElo "2573"]
[BlackElo "2731"]
[TimeControl "180+1"]
[EndTime "10:57:18 PDT"]
[Termination "Rainmond won by checkmate"]

1. Nf3 {[%clk 0:03:00.9]} 1... Nf6 {[%clk 0:02:58.5]} 2. c4 {[%clk 0:03:00.5]}
2... c5 {[%clk 0:02:58.3]} 3. g3 {[%clk 0:02:59.9]} 3... Nc6 {[%clk 0:02:57.9]}
4. Bg2 {[%clk 0:02:56.2]} 4... d5 {[%clk 0:02:57.4]} 5. d4 {[%clk 0:02:34.4]}
5... dxc4 {[%clk 0:02:49.5]} 6. Qa4 {[%clk 0:02:34.1]} 6... Bd7 {[%clk
0:02:43.8]} 7. dxc5 {[%clk 0:02:25.5]} 7... e6 {[%clk 0:02:39.6]} 8. Qxc4 {[%clk
0:02:23.3]} 8... Qa5+ {[%clk 0:02:38.6]} 9. Bd2 {[%clk 0:02:19.1]} 9... Qxc5
{[%clk 0:02:38.3]} 10. Qxc5 {[%clk 0:02:13.9]} 10... Bxc5 {[%clk 0:02:37.8]} 11.
O-O {[%clk 0:01:58.7]} 11... Ke7 {[%clk 0:02:35]} 12. Rc1 {[%clk 0:01:58.1]}
12... Bb6 {[%clk 0:02:33.1]} 13. Na3 {[%clk 0:01:48.7]} 13... Rac8 {[%clk
0:02:31.4]} 14. Nc4 {[%clk 0:01:47.1]} 14... Bc7 {[%clk 0:02:29.5]} 15. b4
{[%clk 0:01:39.1]} 15... Ne4 {[%clk 0:02:23.7]} 16. Be1 {[%clk 0:01:30.2]} 16...
b5 {[%clk 0:02:23.4]} 17. Ncd2 {[%clk 0:01:19.7]} 17... Nd6 {[%clk 0:02:19.1]}
18. a4 {[%clk 0:01:10.1]} 18... a6 {[%clk 0:02:16]} 19. axb5 {[%clk 0:01:08.6]}
19... axb5 {[%clk 0:02:14.7]} 20. Nb3 {[%clk 0:01:07.4]} 20... Nc4 {[%clk
0:02:12.5]} 21. Nc5 {[%clk 0:01:06.5]} 21... Bd6 {[%clk 0:02:09.9]} 22. Nd2
{[%clk 0:00:47.1]} 22... Bxc5 {[%clk 0:01:57.4]} 23. bxc5 {[%clk 0:00:44.8]}
23... Nxd2 {[%clk 0:01:53.8]} 24. Bxd2 {[%clk 0:00:45.7]} 24... Ra8 {[%clk
0:01:53.6]} 25. Bf4 {[%clk 0:00:37.6]} 25... f6 {[%clk 0:01:53.2]} 26. Bd6+
{[%clk 0:00:37]} 26... Kf7 {[%clk 0:01:52.6]} 27. Rcb1 {[%clk 0:00:37.1]} 27...
b4 {[%clk 0:01:49.6]} 28. f4 {[%clk 0:00:29.9]} 28... Ra3 {[%clk 0:01:22.8]} 29.
Rxa3 {[%clk 0:00:27.7]} 29... bxa3 {[%clk 0:01:22.6]} 30. Rb7 {[%clk 0:00:28]}
30... a2 {[%clk 0:01:22.5]} 31. Rxd7+ {[%clk 0:00:20.5]} 31... Kg6 {[%clk
0:01:22.3]} 32. Bxc6 {[%clk 0:00:09.2]} 32... a1=Q+ {[%clk 0:01:22.1]} 33. Kg2
{[%clk 0:00:09.5]} 33... Qb2 {[%clk 0:01:18.1]} 34. Bf3 {[%clk 0:00:08.9]} 34...
Qb5 {[%clk 0:01:08.8]} 35. Re7 {[%clk 0:00:07.8]} 35... Re8 {[%clk 0:01:07.3]}
36. Rc7 {[%clk 0:00:06.3]} 36... Rb8 {[%clk 0:01:03]} 37. g4 {[%clk 0:00:05.7]}
37... Qb1 {[%clk 0:01:00.5]} 38. h4 {[%clk 0:00:05.2]} 38... h5 {[%clk
0:01:00.1]} 39. gxh5+ {[%clk 0:00:04.9]} 39... Kh6 {[%clk 0:00:59.6]} 40. Rd7
{[%clk 0:00:03.5]} 40... Qd1 {[%clk 0:00:35.3]} 41. c6 {[%clk 0:00:03.3]} 41...
Rb1 {[%clk 0:00:32.8]} 42. Rd8 {[%clk 0:00:02.4]} 42... Qh1+ {[%clk 0:00:29.7]}
43. Kf2 {[%clk 0:00:01.9]} 43... Qg1# {[%clk 0:00:29.4]} 0-1

[Event "*** Titled Tuesday Blitz"]
[Site "Chess.com"]
[Date "2020.04.21"]
[Round "5"]
[White "ViktoriyaTarasova"]
[Black "donotreadit"]
[Result "0-1"]
[WhiteElo "2406"]
[BlackElo "2669"]
[TimeControl "180+1"]
[EndTime "10:57:18 PDT"]
[Termination "donotreadit won on time"]

1. d4 {[%clk 0:03:00.9]} 1... d5 {[%clk 0:02:56.5]} 2. c4 {[%clk 0:03:00.9]}
2... e6 {[%clk 0:02:53.5]} 3. Nc3 {[%clk 0:03:00.3]} 3... Be7 {[%clk 0:02:53.7]}
4. cxd5 {[%clk 0:02:59.8]} 4... exd5 {[%clk 0:02:53.6]} 5. Bf4 {[%clk 0:03:00]}
5... c6 {[%clk 0:02:53.3]} 6. e3 {[%clk 0:02:59.6]} 6... Bd6 {[%clk 0:02:54]} 7.
Bxd6 {[%clk 0:02:56.2]} 7... Qxd6 {[%clk 0:02:54.9]} 8. Bd3 {[%clk 0:02:54.6]}
8... Ne7 {[%clk 0:02:55.2]} 9. Qc2 {[%clk 0:02:52.9]} 9... g6 {[%clk 0:02:54.2]}
10. Nf3 {[%clk 0:02:53.2]} 10... Bf5 {[%clk 0:02:54.3]} 11. O-O {[%clk
0:02:53.6]} 11... Bxd3 {[%clk 0:02:51.8]} 12. Qxd3 {[%clk 0:02:54]} 12... O-O
{[%clk 0:02:49.8]} 13. Rab1 {[%clk 0:02:54.1]} 13... Nd7 {[%clk 0:02:48.9]} 14.
b4 {[%clk 0:02:53.9]} 14... a6 {[%clk 0:02:48.5]} 15. a4 {[%clk 0:02:53.3]}
15... f5 {[%clk 0:02:45.8]} 16. Rfc1 {[%clk 0:02:52.1]} 16... Kg7 {[%clk
0:02:38.9]} 17. b5 {[%clk 0:02:51]} 17... cxb5 {[%clk 0:02:36.8]} 18. axb5
{[%clk 0:02:51.5]} 18... a5 {[%clk 0:02:37.5]} 19. Na4 {[%clk 0:02:51]} 19...
Rfc8 {[%clk 0:02:35.4]} 20. Rxc8 {[%clk 0:02:45.4]} 20... Rxc8 {[%clk
0:02:36.3]} 21. b6 {[%clk 0:02:42.8]} 21... Qc6 {[%clk 0:02:26.8]} 22. Qb3
{[%clk 0:02:31.3]} 22... Qc4 {[%clk 0:02:15.4]} 23. h3 {[%clk 0:02:15.9]} 23...
Qxb3 {[%clk 0:02:08.8]} 24. Rxb3 {[%clk 0:02:15.7]} 24... Rc4 {[%clk 0:02:09.4]}
25. Nb2 {[%clk 0:02:07.3]} 25... Rb4 {[%clk 0:01:50.9]} 26. Rxb4 {[%clk
0:02:06.9]} 26... axb4 {[%clk 0:01:51.8]} 27. Nd3 {[%clk 0:02:04.8]} 27... Nc6
{[%clk 0:01:45.4]} 28. Nc5 {[%clk 0:01:56.6]} 28... Nxb6 {[%clk 0:01:45.8]} 29.
Nxb7 {[%clk 0:01:56.7]} 29... b3 {[%clk 0:01:46.1]} 30. Nd2 {[%clk 0:01:55.6]}
30... b2 {[%clk 0:01:46.4]} 31. Nc5 {[%clk 0:01:50.1]} 31... Nc4 {[%clk
0:01:44.2]} 32. Nb1 {[%clk 0:01:49.4]} 32... Nb4 {[%clk 0:01:38.2]} 33. Na4
{[%clk 0:01:39.1]} 33... f4 {[%clk 0:01:35.5]} 34. exf4 {[%clk 0:01:33.5]} 34...
Nc2 {[%clk 0:01:23.7]} 35. Nac3 {[%clk 0:01:25.6]} 35... N4a3 {[%clk 0:01:24]}
36. Kf1 {[%clk 0:01:15.1]} 36... Nxb1 {[%clk 0:01:21.6]} 37. Nxb1 {[%clk
0:01:14.6]} 37... Nxd4 {[%clk 0:01:22.5]} 38. Ke1 {[%clk 0:01:10.2]} 38... Kf6
{[%clk 0:01:08.4]} 39. Kd2 {[%clk 0:01:04.5]} 39... Kf5 {[%clk 0:01:08.7]} 40.
Kd3 {[%clk 0:01:03.7]} 40... Nb5 {[%clk 0:01:01.4]} 41. g3 {[%clk 0:01:03.4]}
41... d4 {[%clk 0:01:01.3]} 42. Kc2 {[%clk 0:00:43]} 42... Nc3 {[%clk
0:01:01.4]} 43. Nd2 {[%clk 0:00:41.7]} 43... Ne4 {[%clk 0:00:47.3]} 44. Nf3
{[%clk 0:00:14.9]} 44... d3+ {[%clk 0:00:30.9]} 45. Kxb2 {[%clk 0:00:15.3]}
45... Nxf2 {[%clk 0:00:31.5]} 46. Kc3 {[%clk 0:00:14.4]} 46... Ke4 {[%clk
0:00:28.5]} 47. Ng5+ {[%clk 0:00:14.1]} 47... Ke3 {[%clk 0:00:28.5]} 48. f5
{[%clk 0:00:04]} 48... gxf5 {[%clk 0:00:27.7]} 0-1